Cogmind - Beta 10.2 @@@ ROGUE MODE // 2020.11.29 @ 17:20:38 // Halloween2020/ForbiddenLore Player: Nix Result: Destroyed by S-27 Virus with Autogun Performance ------------- Evolutions (3) 1500 Regions Visited (4) 800 Robots Destroyed (3) 15 Value Destroyed (60) 60 Prototype IDs (2) 40 Alien Tech Used (0) 0 Bonus (200) 200 TOTAL SCORE: 2615 Bonus ------- Pacifist 200 Cogmind --------- Core Integrity 0/700 Matter 177/300 Energy 99/100 System Corruption 2% Temperature Cool (9) Movement Core (50) Location -7/Factory Parts ------- > --- POWER (1) -------- (None) > --- PROPULSION (3) --- (None) > --- UTILITY (5) ------ Signal Interpreter > --- WEAPON (4) ------- (None) > --- INVENTORY (4) ---- Light Ion Engine Medium Storage Unit Improved Sensor Array Peak State ------------ > --- POWER ------------ Light Ion Engine > --- PROPULSION ------- Carbon-fiber Leg Wheel Wheel > --- UTILITY ---------- Small Storage Unit Medium Storage Unit Heavy Armor Plating > --- WEAPON ----------- Small Laser Particle Cannon > --- INVENTORY -------- Light Ion Engine Signal Interpreter [Rating: 17] Favorites ----------- Power Light Ion Engine Engine Light Ion Engine Propulsion Wheel Leg Aluminum Leg Wheel Wheel Utility Small Storage Unit Device Improved Sensor Array Storage Small Storage Unit Processor Signal Interpreter Protection Heavy Armor Plating Weapon Small Laser Energy Gun Small Laser Energy Cannon Particle Cannon Ballistic Cannon Light Cannon Build | -11 -10 -9 -8 -7 ------- Run | Scr Mat Mat Mat Fac Slots Evolved 6 | . . 2 2 2 Power . | . . . . . Propulsion 1 | . . 1 . . Utility 3 | . . 1 1 1 Weapon 2 | . . . 1 1 Parts Attached 18 | 5 1 1 9 2 Power 2 | 1 . . 1 . Engine 2 | 1 . . 1 . Core . | . . . . . Reactor . | . . . . . Propulsion 5 | 2 . . 3 . Treads . | . . . . . Leg 3 | 2 . . 1 . Wheel 2 | . . . 2 . Hover . | . . . . . Flight . | . . . . . Utility 6 | 1 . . 3 2 Device 1 | . . . . 1 Storage 3 | 1 . . 2 . Processor 1 | . . . . 1 Hackware . | . . . . . Protection 1 | . . . 1 . Artifact . | . . . . . Weapon 5 | 1 1 1 2 . Energy Gun 3 | 1 1 . 1 . Energy Cannon 1 | . . . 1 . Ballistic Gun . | . . . . . Ballistic Cannon 1 | . . 1 . . Launcher . | . . . . . Special Weapon . | . . . . . Impact Weapon . | . . . . . Slashing Weapon . | . . . . . Piercing Weapon . | . . . . . Special Melee Weapon . | . . . . . Unidentified Prototypes . | . . . . . Parts Lost 14 | . 1 5 1 7 Power 2 | . . 1 . 1 Propulsion 5 | . . 2 . 3 Utility 2 | . . . . 2 Weapon 5 | . 1 2 1 1 Highest Loss Streak 7 | . 1 5 1 7 Average Slot Usage (%) 55 | . 80 56 54 47 Engine 7 | . 14 8 6 5 Leg 12 | . 28 20 7 4 Wheel 7 | . . . 13 10 Device 1 | . . . . 2 Storage 8 | . 14 11 9 5 Processor 2 | . . . . 6 Protection 3 | . . . 5 4 Energy Gun 8 | . 23 8 6 4 Energy Cannon 1 | . . . 4 . Ballistic Cannon 1 | . . 7 . . Naked Turns . | . . . . . Heaviest Build 39 | 11 14 15 39 36 Greatest Support 20 | 20 20 20 20 20 Greatest Overweight (x) 6 | . . 1 1 6 Average Overweight (x) . | . . . . . Largest Inventory Capacity 10 | 6 6 6 10 10 Average Capacity 7 | 5 6 6 7 8 Most Carried 6 | 4 4 5 6 3 Average Carried 3 | 2 3 4 3 2 Final Capacity 10 | 6 6 6 10 4 Final Carried 5 | 3 3 5 3 3 Class Distribution -------------------- 100% | Mutant Dominant Class ---------------- Mutant | -10/Materials Mutant | -9/Materials Mutant | -8/Materials Mutant | -7/Factory Resources | -11 -10 -9 -8 -7 ----------- Run | Scr Mat Mat Mat Fac Matter Collected 233 | 198 . 35 . . Remotely . | . . . . . Salvage Created 77 | . . 77 . . Parts 8 | . . 8 . . Haulers Intercepted . | . . . . . Recyclers Shooed . | . . . . . Parts Field Recycled . | . . . . . Retrieved Matter . | . . . . . Parts Self-Destructed . | . . . . . Prevented . | . . . . . Kills | -11 -10 -9 -8 -7 ------- Run | Scr Mat Mat Mat Fac Combat Hostiles Destroyed 2 | . . 2 . . Guns 2 | . . 2 . . Classes Destroyed 3 | . . 3 . . Watcher 1 | . . 1 . . Swarmer 1 | . . 1 . . Grunt 1 | . . 1 . . Best Kill Streak 2 | . . 2 . . Combat Bots Only 2 | . . 2 . . Max Kills in Single Turn 1 | . . 1 . . Gunslinging . | . . . . . Exploded . | . . . . . Melee . | . . . . . Uniques/NPCs Destroyed . | . . . . . Combat | -11 -10 -9 -8 -7 -------- Run | Scr Mat Mat Mat Fac Damage Taken 2258 | . 160 520 518 1060 Core 952 | . 44 131 74 703 Absorbed by Shields . | . . . . . Core Remaining (%) 83 | 100 82 67 86 . Volleys Fired 27 | . 1 12 2 12 Largest 2 | . 2 2 2 1 Hottest 108 | . 85 80 108 40 Shots Fired 36 | . 2 18 4 12 Gun 22 | . 2 6 2 12 Cannon 14 | . . 12 2 . Launcher . | . . . . . Special . | . . . . . Kinetic 12 | . . 12 . . Thermal 16 | . . . 4 12 Explosive . | . . . . . Electromagnetic 8 | . 2 6 . . Robot Hit Streak 5 | . 1 3 2 5 Robot Miss Streak 2 | . 1 1 2 1 Penetration Max . | . . . . . Secondary Targets . | . . . . . Shots Hit Robots 21 | . 1 9 2 9 Core Hits 6 | . . 3 . 3 Critical Hits . | . . . . . Critical Kills . | . . . . . Critical Parts Destroyed . | . . . . . Melee Attacks . | . . . . . Impact . | . . . . . Slashing . | . . . . . Piercing . | . . . . . Sneak Attacks . | . . . . . Combat Hostiles . | . . . . . Follow-up Attacks . | . . . . . Damage Inflicted 296 | . 25 167 30 74 Guns 182 | . 16 82 10 74 Cannons 105 | . . 85 20 . Explosions . | . . . . . Melee . | . . . . . Ramming 9 | . 9 . . . Kinetic 85 | . . 85 . . Thermal 104 | . . . 30 74 Explosive . | . . . . . Electromagnetic 98 | . 16 82 . . Impact . | . . . . . Slashing . | . . . . . Piercing . | . . . . . Highest Corruption 2 | . . . . 2 Average Corruption 2 | . . . . 2 Corruption Purged . | . . . . . Effects 5 | . . . . 5 Message Errors 3 | . . . . 3 Energy Discharges 1 | . . . . 1 Data Loss (minor) 1 | . . . . 1 Overload Shots . | . . . . . Overflow Damage . | . . . . . Projectiles . | . . . . . Explosions . | . . . . . Melee . | . . . . . Knockbacks 6 | . 1 5 . . Impact 1 | . 1 . . . Kinetic 4 | . . 4 . . Secondary 1 | . . 1 . . Self-Inflicted Damage 4 | . 4 . . . Shots . | . . . . . Rammed 1 | . 1 . . . Targets Rammed 1 | . 1 . . . Kicked . | . . . . . Crushed . | . . . . . Highest Temperature 96 | . 24 18 96 . Average Temperature 23 | . 13 8 52 . Received Heat Transfer 270 | . 87 57 54 72 Siege Activations . | . . . . . Robots Corrupted . | . . . . . Combat Hostiles . | . . . . . Parts Fried . | . . . . . Impact Corruptions . | . . . . . Robots Melted . | . . . . . Combat Hostiles . | . . . . . Parts Melted . | . . . . . Heat Transferred 237 | . . . 62 175 Parts Sabotaged . | . . . . . Parts Stolen . | . . . . . Parts Stripped . | . . . . . Power Chain Reactions . | . . . . . Missiles Intercepted . | . . . . . Alert | -11 -10 -9 -8 -7 ------- Run | Scr Mat Mat Mat Fac Peak Influence 185 | . 22 86 125 185 Initial 51 | . . 9 23 51 Average 41 | . 2 39 52 55 Maximum Alert Level . | . . . . . Low Security (%) 100 | 100 100 100 100 100 Level 1 . | . . . . . Level 2 . | . . . . . Level 3 . | . . . . . Level 4 . | . . . . . Level 5 . | . . . . . High Security . | . . . . . Max Security . | . . . . . Squads Dispatched 4 | . . 1 . 3 Investigation . | . . . . . Extermination . | . . . . . Reinforcement 4 | . . 1 . 3 Assault . | . . . . . Garrison . | . . . . . Intercept . | . . . . . Construction Impeded . | . . . . . Haulers Reinforced . | . . . . . Stealth | -11 -10 -9 -8 -7 --------- Run | Scr Mat Mat Mat Fac Distress Signals 5 | . . 3 . 2 Communications Jammed . | . . . . . Distress Signals . | . . . . . Times Spotted 54 | . 5 12 13 24 Peak Tracking Total 11 | . 6 8 11 9 Tactical Retreats 5 | . . 1 1 3 Traps | -11 -10 -9 -8 -7 ------- Run | Scr Mat Mat Mat Fac Traps Triggered 1 | . . . . 1 Indirectly . | . . . . . Trap Hack Attempts . | . . . . . Triggered . | . . . . . Disarmed . | . . . . . Reprogrammed . | . . . . . Reused . | . . . . . Traps Extracted . | . . . . . Installed . | . . . . . Triggered . | . . . . . Machines | -11 -10 -9 -8 -7 ---------- Run | Scr Mat Mat Mat Fac Machines Disabled . | . . . . . Max in Single Turn . | . . . . . Machines Sabotaged . | . . . . . Garrisons Compromised . | . . . . . Overloaded Fab Kills . | . . . . . Fab Network Shutdowns . | . . . . . Hacking | -11 -10 -9 -8 -7 --------- Run | Scr Mat Mat Mat Fac Machines Accessed 3 | . 1 1 1 . Terminals 3 | . 1 1 1 . Fabricators . | . . . . . Repair Stations . | . . . . . Recycling Units . | . . . . . Scanalyzers . | . . . . . Garrison Access . | . . . . . Total Hacks 9 | . 3 4 2 . Successful 6 | . 2 2 2 . Failed 3 | . 1 2 . . Catastrophic . | . . . . . Database Lockouts . | . . . . . Manual 1 | . . . 1 . Terminals 9 | . 3 4 2 . Fabricators . | . . . . . Repair Stations . | . . . . . Recycling Units . | . . . . . Scanalyzers . | . . . . . Garrison Access . | . . . . . Terminal Hacks 6 | . 2 2 2 . Prototype ID Bank 1 | . . 1 . . Emergency Access Points 1 | . 1 . . . Patrol Status 1 | . . . 1 . Recall Investigation 1 | . 1 . . . Hauler Manifests 1 | . . 1 . . Zone Layout 1 | . . . 1 . Fabricator Hacks . | . . . . . Repair Station Hacks . | . . . . . Recycling Unit Hacks . | . . . . . Scanalyzer . | . . . . . Garrison Access Hacks . | . . . . . Unauthorized Hacks . | . . . . . Terminals . | . . . . . Fabricators . | . . . . . Repair Stations . | . . . . . Recycling Units . | . . . . . Scanalyzers . | . . . . . Garrison Access . | . . . . . Data Cores Recovered . | . . . . . Used . | . . . . . Hacking Detections 3 | . 1 1 1 . Full Trace Events . | . . . . . Feedback Events . | . . . . . Feedback Blocked . | . . . . . Robot Schematics Acquired . | . . . . . Robots Built . | . . . . . Matter . | . . . . . Time . | . . . . . Total Robot Build Rating . | . . . . . Part Schematics Acquired . | . . . . . Parts Built . | . . . . . Matter . | . . . . . Time . | . . . . . Total Part Build Rating . | . . . . . Parts Repaired . | . . . . . Time . | . . . . . Parts Recycled . | . . . . . Recycled Matter . | . . . . . Retrieved Matter . | . . . . . Retrieved Components . | . . . . . Parts Scanalyzed . | . . . . . Part Schematics Acquired . | . . . . . Parts Damaged . | . . . . . Bothacking | -11 -10 -9 -8 -7 ------------ Run | Scr Mat Mat Mat Fac Used RIF Installer . | . . . . . Robots Hacked . | . . . . . Non-combat . | . . . . . Combat . | . . . . . Robot Hacks Applied . | . . . . . Relay Couplers Released . | . . . . . Robots Rewired . | . . . . . Allies Hacked . | . . . . . Hacks Repelled . | . . . . . Allies | -11 -10 -9 -8 -7 -------- Run | Scr Mat Mat Mat Fac Total Allies . | . . . . . Largest Group . | . . . . . Highest-Rated Group . | . . . . . Highest-Rated Ally . | . . . . . Total Orders . | . . . . . Ally Attacks . | . . . . . Total Damage . | . . . . . Kills . | . . . . . Allies Corrupted . | . . . . . Allies Melted . | . . . . . Intel | -11 -10 -9 -8 -7 ------- Run | Scr Mat Mat Mat Fac Robot Analysis Total . | . . . . . Derelict Logs Recovered . | . . . . . Drone Launches . | . . . . . Drone Recoveries . | . . . . . Exploration | -11 -10 -9 -8 -7 ------------- Run | Scr Mat Mat Mat Fac Turns Passed 834 | 47 117 174 164 332 Spaces Moved 717 | 38 93 119 129 338 Core 206 | 14 . 11 29 152 Treads . | . . . . . Legs 228 | 24 93 108 . 3 Wheels 283 | . . . 100 183 Hover . | . . . . . Flight . | . . . . . Fastest Speed 50 | 50 120 100 80 50 Average Speed 93 | 94 120 118 90 78 Slowest Speed 350 | 120 120 120 100 350 Overloaded Moves . | . . . . . Propulsion Burnouts . | . . . . . Robots Hopped . | . . . . . Cave-ins Triggered . | . . . . . Exploration Rate (%) 15 | 3 21 21 20 12 Regions Visited 4 Branch Regions . Pre-discovered Areas . | . . . . . Known Exits Taken . | . . . . . Unknown Exits Taken 4 | 1 1 1 1 . Scrap Searched . | . . . . . Spaces Dug . | . . . . . Terrain Destroyed . | . . . . . Melee . | . . . . . Projectile . | . . . . . AOE . | . . . . . Terrain Rammed . | . . . . . Walls Destroyed . | . . . . . Machines Disabled . | . . . . . Actions | -11 -10 -9 -8 -7 --------- Run | Scr Mat Mat Mat Fac Total 843 | 48 96 134 171 394 Wait 65 | . . . 26 39 Move 713 | 37 92 118 128 338 Hop . | . . . . . Pick Up 17 | 6 1 3 5 2 Fast Attach 3 | 2 . . 1 . Attach 14 | 3 1 1 7 2 Detach . | . . . . . Swap 1 | . . . 1 . Drop 2 | . . . 1 1 Fire 27 | . 1 12 2 12 Melee . | . . . . . Ram . | . . . . . Kick 1 | . 1 . . . Crush . | . . . . . Escape Stasis . | . . . . . Rewire . | . . . . . Trap . | . . . . . Miscellaneous . | . . . . . Route ------- -11/Scrapyard -10/Materials -9/Materials (discovered 2 exits: *Mat / [*Min]) -8/Materials -7/Factory History --------- Turn | Location | Event 5 | -11/Scrapyard | Discovered new exit (range 16) 48 | -11/Scrapyard | Entered Materials 148 | -10/Materials | Discovered new exit (range 15) 165 | -10/Materials | Entered another Materials area 165 | -9/Materials | Evolved 2 slots: Propulsion x1, Utility x1 165 | -9/Materials | Discovered new exit (range 14) 302 | -9/Materials | Build established: Mutant 323 | -9/Materials | Discovered new exit (range 16) 339 | -9/Materials | Entered another Materials area 339 | -8/Materials | Evolved 2 slots: Utility x1, Weapon x1 360 | -8/Materials | Lost 5 parts (1p2n2w) 490 | -8/Materials | Discovered new exit (range 16) 503 | -8/Materials | Entered Factory 503 | -7/Factory | Evolved 2 slots: Utility x1, Weapon x1 759 | -7/Factory | Core integrity fell below 50% 776 | -7/Factory | Lost 7 parts (1p3n2u1w) 803 | -7/Factory | Core integrity fell below 20% 835 | -7/Factory | Destroyed by S-27 Virus with Autogun Last Messages --------------- 00745_ Lgt. Ion Engine destroyed. 00754_ ALERT: Hostiles spotted, dispatching reinforcements to Terminal F010. 00762_ Dropped Lrg. Storage Unit. 00770_ W-25 Informer sends out distress signal. 00773_ |=SCGWY05>FUMOQIVWCX:NU0JJ< 00781_ O-24 Administrator: "IFF HANDSHAKE FAILED. SECURING TERMINAL." 00781_ K-01 Serf collects debris. 00787_ ALERT: Hostiles spotted, dispatching reinforcements to Terminal F014. 00793_ U-05 Engineer builds a Door. 00798_ O-24 Administrator: "IFF HANDSHAKE FAILED. SECURING TERMINAL." 00798_ T-07 Excavator is excavating. 00800_ U-05 Engineer destroyed. 00801_ ALERT: Hostiles spotted, dispatching reinforcements to Terminal F009. 00802_ T-07 Excavator is excavating. 00802_ K-01 Serf collects debris. 00808_ U-05 Engineer lays Concrete. 00808_ K-01 Serf collects debris. Map ----- +----------------------------------------------------+ | ?????????????????????????????????????????????????? | | ?????????????????????????????????????????????????? | | ?????????????????????????????????????????????????? | | ?????????????????????????????????????????????????? | | ?????????????????????????????????????????????????? | | ?????????????????????????????????????????????????? | | ?????????????????????????????????????????????????? | | ?????????????????????????????????????????????????? | | ?????????????????????????????????????????????????? | | ?????????????????????????????????????????????????? | | ?????????????????????????????????????????????????? | | ?????????????????????????????????????????????????? | | ???????????????#################?????????????????? | | ??????????????? # **#?????????????????? | | ??????????????? # * #?????????????????? | | ???????????????!![# #?????????????????? | | ????????????? ![[# #?????????????????? | | ???????????? ![[# s !#?????????????????? | | ???????????? # #?????????????????? | | ????????????? # s! #?????????????????? | | ?????????????""" # ss #?????????????????? | | ?????????????? # #?????????????????? | | ??????????????"" # #?????????????????? | | ??????????????? ??? ???????????????????? | | ####??????????? ?????/ ?????????????????????? | | #############+########@#######????????????????? | | ?????????? | | ?????????? | | ! ?????????? | | ??????????? | | ??????????? | | g w ???????????? | | a ??????????? | | ####+#################+############???????????? | | ####? ????????????????????????????????????????? | | ???? ?"""????????????????????????????????????????? | | ????? ???????????????????????????????????????? | | ?????"""""???????????????????????????????????????? | | ???? ??????????????????????????????????????? | | ???? """"""??????????????????????????????????????? | | ???# ?????????????????????????????????????? | | ???# ?"""????????????????????????????????????????? | | ?????????????????????????????????????????????????? | | ?????????????????????????????????????????????????? | | ?????????????????????????????????????????????????? | | ?????????????????????????????????????????????????? | | ?????????????????????????????????????????????????? | | ?????????????????????????????????????????????????? | | ?????????????????????????????????????????????????? | | ?????????????????????????????????????????????????? | +----------------------------------------------------+ Best States ------------- Heat Dissipation 34 Energy Generation 10 Energy Capacity 250 Matter Stores 248 Matter Capacity 300 Sight Range 16 Robot Scan Range 13 Terrain Scan Density 10 Armor Coverage 600 Evasion (%) 50 Item Schematics ----------------- None Robot Schematics ------------------ None Fabricated ------------ Nothing Alien Tech Used ----------------- None Achievements -------------- None Challenges ------------ None Game ------ Seed RecyclingIonShredder Manual? 0 Play Time 00:20:42 Cumulative 155.3 hours Start 2020.11.29 @ 17:04:54 End 2020.11.29 @ 17:20:38 Sessions 1 Manual Loads 0 Difficulty Rogue Special Mode Halloween2020/ForbiddenLore Game No. 34 Rogue 34 Adventurer 0 Explorer 0 Win Type - Total 0 Types 0/0/0/0/0/0/0/0/0 Lore% 19 Gallery% 30 Achievement% 14 Wizard Run 0 Options --------- ASCII 0 Keyboard 0 Movement Mouse Keybinds 0 Fullscreen 0 Font 12/Terminus Map View 76x50 Tactical HUD 1 Map Filters NONE Filters NONE Steam 1 RUN: 61314b29-105c-44a9-895f-da7c0ef4380d